bitfinex/quotes_BTCUSD_20250515
["timestamp","ask_amount","ask_price","bid_price","bid_amount"]
[1747302295041,0.23803228,101680.0,101670.0,1.25478859]
[1747302295254,0.04133677,101680.0,101670.0,1.26093361]
[1747302296054,0.002,101680.0,101670.0,1.35824301]
[1747302297995,0.002,101680.0,101670.0,1.36824059]
[1747302300735,0.0118339,101680.0,101670.0,1.36824059]
[1747302300892,0.23803305,101680.0,101670.0,0.67400742]
[1747302301094,0.22819905,101680.0,101670.0,0.90724553]
[1747302301382,0.21836476,101680.0,101670.0,0.71053067]
[1747302301585,0.20853018,101680.0,101670.0,0.42682147]
[1747302301798,0.22453018,101680.0,101670.0,0.08682185]
[1747302301965,0.24083018,101680.0,101670.0,0.07682427]
[1747302303044,0.33813958,101680.0,101670.0,0.07682427]
[1747302303294,0.33813958,101680.0,101670.0,0.00760033]
[1747302304250,0.33713958,101680.0,101670.0,0.00760033]
[1747302304437,0.53929958,101680.0,101670.0,0.00760033]
[1747302304637,0.74177958,101680.0,101670.0,0.00760033]
[1747302304815,0.74077958,101680.0,101670.0,0.00660033]
[1747302306027,0.74377958,101680.0,101670.0,0.00760033]
[1747302306230,0.74577958,101680.0,101670.0,0.00760033]
[1747302307660,1.10032043,101680.0,101670.0,0.00760033]
[1747302309327,0.69568043,101680.0,101670.0,0.00760033]
[1747302309544,1.10024043,101680.0,101670.0,0.00760033]
[1747302311122,1.10024043,101680.0,101670.0,0.00145493]
[1747302312156,0.88361958,101680.0,101670.0,0.00145493]
[1747302312367,1.08569958,101680.0,101670.0,0.00145493]
[1747302312630,0.74569958,101680.0,101670.0,0.28516413]
[1747302312843,0.71339958,101680.0,101670.0,0.03899394]
[1747302313045,0.71339958,101680.0,101670.0,0.00145493]
[1747302313406,0.71339958,101680.0,101670.0,0.28516413]
[1747302313407,0.30883958,101680.0,101670.0,0.28516413]
[1747302314048,0.30883958,101680.0,101670.0,0.00145493]
[1747302314604,0.34033958,101680.0,101670.0,0.00145493]
[1747302319990,0.32513958,101680.0,101670.0,0.00145493]
[1747302320347,0.52709958,101680.0,101670.0,0.00145493]
[1747302323363,0.51079958,101680.0,101670.0,0.00145493]
[1747302323564,0.54319958,101680.0,101670.0,0.00145493]
[1747302324658,0.89774043,101680.0,101670.0,0.00145493]
[1747302329823,1.32262043,101680.0,101670.0,0.00145493]
[1747302332150,0.56111157,101660.0,101650.0,0.04027077]
[1747302332398,0.56117255,101630.0,101620.0,0.00232827]
[1747302332617,1.47816255,101630.0,101620.0,0.00278264]
[1747302332851,1.48816255,101630.0,101620.0,0.00278264]
[1747302333065,1.07528714,101630.0,101620.0,0.00278264]
[1747302333285,1.54597195,101630.0,101620.0,0.00278264]
[1747302333509,0.70403195,101630.0,101620.0,0.00278264]
[1747302333733,0.90044195,101630.0,101620.0,0.00278264]
[1747302333978,0.73792841,101630.0,101620.0,0.00278264]
[1747302334213,0.8861411,101630.0,101620.0,0.00278264]
[1747302334455,0.88448195,101630.0,101620.0,0.00278264]
[1747302334683,1.08620195,101630.0,101620.0,0.00278264]
[1747302334905,1.08420195,101630.0,101620.0,0.00278264]
[1747302335383,0.68648195,101630.0,101620.0,0.00278264]
[1747302336218,1.09024195,101630.0,101620.0,0.00278264]
[1747302336413,1.10534195,101630.0,101620.0,0.00278264]
[1747302336950,0.90358195,101630.0,101620.0,0.00278264]
[1747302337315,1.10530195,101630.0,101620.0,0.00278264]
[1747302337730,0.90358195,101630.0,101620.0,0.00278264]
[1747302338172,1.10530195,101630.0,101620.0,0.00278264]
[1747302338395,0.70158195,101630.0,101620.0,0.00278264]
[1747302338597,1.10534195,101630.0,101620.0,0.00278264]
[1747302345580,0.88852195,101630.0,101620.0,0.00278264]
[1747302345781,1.09020195,101630.0,101620.0,0.00278264]
[1747302345957,1.10530195,101630.0,101620.0,0.00278264]
[1747302347377,1.16435195,101630.0,101620.0,0.00278264]
[1747302353059,0.96267195,101630.0,101620.0,0.00278264]
[1747302353260,1.16427195,101630.0,101620.0,0.00278264]
[1747302353418,1.16391195,101630.0,101620.0,0.00278264]
[1747302354863,1.14881195,101630.0,101620.0,0.00278264]
[1747302355138,1.0592211,101630.0,101620.0,0.00278264]
[1747302355808,0.88846195,101630.0,101620.0,0.00278264]
[1747302355957,1.09006195,101630.0,101620.0,0.00278264]
[1747302356338,1.10606195,101630.0,101620.0,0.00278264]
[1747302357140,1.09006195,101630.0,101620.0,0.00278264]
[1747302358387,1.09002195,101630.0,101620.0,0.00278264]
[1747302360774,1.10562195,101630.0,101620.0,0.00278264]
[1747302361937,1.09002195,101630.0,101620.0,0.00278264]
[1747302365859,1.13326859,101630.0,101620.0,0.00278264]
[1747302368162,1.13726859,101630.0,101620.0,0.00278264]
[1747302368328,1.19819411,101630.0,101620.0,0.00278264]
[1747302368507,1.20019411,101630.0,101620.0,0.00278264]
[1747302368710,1.13926859,101630.0,101620.0,0.00278264]
[1747302368909,1.14726859,101630.0,101620.0,0.00278264]
[1747302371938,1.12272774,101630.0,101620.0,0.00278264]
[1747302372154,0.36348774,101630.0,101620.0,0.00278264]
[1747302372360,1.12288774,101630.0,101620.0,0.00278264]
[1747302372808,1.13742859,101630.0,101620.0,0.00278264]
[1747302374254,1.12112859,101630.0,101620.0,0.00278264]
[1747302374837,1.13746859,101630.0,101620.0,0.00278264]
[1747302378764,1.12116859,101630.0,101620.0,0.00278264]
[1747302379180,1.12088859,101630.0,101620.0,0.00278264]
[1747302380356,1.81398859,101630.0,101620.0,0.00278264]
[1747302381208,1.83048859,101630.0,101620.0,0.00278264]
[1747302381681,1.84578859,101630.0,101620.0,0.00278264]
[1747302384941,2.27094859,101630.0,101620.0,0.00278264]
[1747302386490,1.62359066,101630.0,101620.0,0.00278264]
[1747302386728,1.63359066,101630.0,101620.0,0.00278264]
[1747302388192,1.69264066,101630.0,101620.0,0.00278264]
[1747302389610,1.64689859,101630.0,101620.0,0.00278264]
[1747302390016,1.67644759,101630.0,101620.0,0.00278264]
[1747302390238,1.67644759,101630.0,101620.0,0.00261274]
[1747302393151,1.64144759,101630.0,101620.0,0.00261274]
[1747302396389,1.22228759,101630.0,101620.0,0.00261274]
[1747302396543,1.64136759,101630.0,101620.0,0.00261274]
[1747302396728,1.22228759,101630.0,101620.0,0.00261274]
[1747302396941,1.64128759,101630.0,101620.0,0.00261274]
[1747302400090,1.68708941,101630.0,101620.0,0.00261274]
[1747302404940,1.64128759,101630.0,101620.0,0.00261274]
[1747302412771,1.22228759,101630.0,101620.0,0.00261274]
[1747302412977,1.58355859,101630.0,101620.0,0.00261274]
[1747302413181,1.58359859,101630.0,101620.0,0.00261274]
[1747302414984,1.16743859,101630.0,101620.0,0.00261274]
[1747302415180,1.58323859,101630.0,101620.0,0.00261274]
[1747302416917,1.62904906,101630.0,101620.0,0.00261274]
[1747302418716,1.21324906,101630.0,101620.0,0.00261274]
[1747302418928,1.21324906,101630.0,101620.0,0.03431274]
[1747302418929,1.53815821,101630.0,101620.0,0.03431274]
[1747302419140,1.59720821,101630.0,101620.0,0.00261274]
[1747302419353,1.21204906,101630.0,101620.0,0.00261274]
[1747302419626,1.64312906,101630.0,101620.0,0.00261274]
[1747302420055,1.59731859,101630.0,101620.0,0.00261274]
[1747302421254,1.60731859,101630.0,101620.0,0.00261274]
[1747302423616,0.6425025,101620.0,101600.0,0.21634106]
[1747302423821,0.63878678,101610.0,101600.0,0.19609407]
[1747302424027,0.66360986,101610.0,101600.0,0.19609407]
[1747302425082,0.76091926,101610.0,101600.0,0.19609407]
[1747302425274,0.77601926,101610.0,101600.0,0.19609407]
[1747302425898,0.78401926,101610.0,101600.0,0.19609407]
[1747302426124,0.76891926,101610.0,101600.0,0.19609407]
[1747302426331,0.78431926,101610.0,101600.0,0.19609407]
[1747302426533,0.77691926,101610.0,101600.0,0.19609407]
[1747302426745,1.23247926,101610.0,101600.0,0.21179407]
[1747302426941,1.23247926,101610.0,101600.0,0.19609407]
[1747302428046,1.17342926,101610.0,101600.0,0.19609407]
[1747302428968,1.17306926,101610.0,101600.0,0.19609407]
[1747302429765,1.17306926,101610.0,101600.0,0.18765007]
[1747302431182,1.21889595,101610.0,101600.0,0.18765007]
[1747302431383,1.23419595,101610.0,101600.0,0.18765007]
[1747302432200,1.65947595,101610.0,101600.0,0.18765007]
[1747302433237,1.64417595,101610.0,101600.0,0.18765007]
[1747302433668,1.64417595,101610.0,101600.0,0.20385007]
[1747302433872,1.64417595,101610.0,101600.0,0.18765007]
[1747302435340,1.62723595,101610.0,101600.0,0.20355007]
[1747302437264,1.17287595,101610.0,101600.0,0.20355007]
[1747302437487,1.62691595,101610.0,101600.0,0.20355007]
[1747302438110,1.70256595,101610.0,101600.0,0.18765007]
[1747302439401,1.70256595,101610.0,101600.0,0.20405007]
[1747302443591,1.70256595,101610.0,101600.0,0.18765007]
[1747302444835,1.70072595,101610.0,101600.0,0.18765007]
[1747302445044,1.71582595,101610.0,101600.0,0.18765007]
[1747302446611,1.72582595,101610.0,101600.0,0.18765007]
[1747302450029,1.82942595,101610.0,101600.0,0.18765007]
[1747302450233,1.72582595,101610.0,101600.0,0.18765007]
[1747302455536,1.72582595,101610.0,101600.0,0.17977425]
[1747302456138,1.72582595,101610.0,101580.0,0.10981157]
[1747302456139,0.0367,101590.0,101580.0,0.09411157]
[1747302456348,0.62032426,101580.0,101570.0,0.00029077]
[1747302456554,0.73293366,101580.0,101570.0,0.00029077]
[1747302456681,0.81792528,101580.0,101570.0,0.00029077]
[1747302457533,0.81792528,101580.0,101570.0,0.00042848]
[1747302457726,0.82392528,101580.0,101570.0,0.00042848]
[1747302458122,0.65614461,101570.0,101560.0,0.00075545]
[1747302458328,0.08343802,101550.0,101540.0,0.03466306]
[1747302458529,0.94195829,101550.0,101540.0,0.05080138]
[1747302458778,0.93953473,101550.0,101540.0,0.03480138]
[1747302459282,0.95613473,101550.0,101540.0,0.01850138]
[1747302459495,0.71769473,101550.0,101540.0,0.03380138]
[1747302459671,1.10192473,101550.0,101540.0,0.04880138]
[1747302459906,0.65864473,101550.0,101540.0,0.04880138]
[1747302460112,1.10204473,101550.0,101540.0,0.04880138]
[1747302460522,0.66464473,101550.0,101540.0,0.04880138]
[1747302460764,1.10188473,101550.0,101540.0,0.04880138]
[1747302460968,1.10180473,101550.0,101540.0,0.04880138]
[1747302461141,0.65864473,101550.0,101540.0,0.04880138]
[1747302461316,1.10768473,101550.0,101540.0,0.04880138]
[1747302461719,1.10168473,101550.0,101540.0,0.04880138]
[1747302462106,1.10568473,101550.0,101540.0,0.04880138]
[1747302462306,1.10968473,101550.0,101540.0,0.04880138]
[1747302464224,1.80278473,101550.0,101540.0,0.04880138]
[1747302464636,1.34520388,101550.0,101540.0,0.04880138]
[1747302464845,1.56708388,101550.0,101540.0,0.04880138]
[1747302465040,1.78724388,101550.0,101540.0,0.04880138]
[1747302465674,1.00520388,101550.0,101540.0,0.33340347]
[1747302465886,1.78708388,101550.0,101540.0,0.33340347]
[1747302466084,1.00520388,101550.0,101540.0,0.36674782]
[1747302466325,1.44700388,101550.0,101540.0,0.36674782]
[1747302466940,1.78720388,101550.0,101540.0,0.36674782]
[1747302467952,1.34520388,101550.0,101540.0,0.36674782]
[1747302468084,0.87398388,101550.0,101540.0,0.36674782]
[1747302469335,0.87398388,101550.0,101540.0,0.08214573]
[1747302469540,0.87398388,101550.0,101540.0,0.33340347]
[1747302473633,0.87398388,101550.0,101540.0,0.04880138]
[1747302473839,0.87398388,101550.0,101540.0,0.33340347]
[1747302476613,0.87326363,101550.0,101540.0,0.33340347]
[1747302476792,0.65138363,101550.0,101540.0,0.33340347]
[1747302477008,0.87326363,101550.0,101540.0,0.36674782]
[1747302482238,0.65138363,101550.0,101540.0,0.36674782]
[1747302482821,0.43595423,101550.0,101540.0,0.36674782]
[1747302483022,0.21407423,101550.0,101540.0,0.36674782]
[1747302483427,0.21407423,101550.0,101540.0,0.45541045]
[1747302483615,0.21407423,101550.0,101540.0,0.46545669]
[1747302484955,0.22464174,101550.0,101540.0,0.94636516]
[1747302485166,0.22464174,101550.0,101540.0,0.97590947]
[1747302485167,0.23448852,101550.0,101540.0,0.97590947]
[1747302485377,0.02769385,101550.0,101540.0,0.99449622]
[1747302485500,0.03754111,101550.0,101540.0,0.99449622]
[1747302485708,0.03754111,101550.0,101540.0,1.00434387]
[1747302485954,0.03354111,101550.0,101540.0,1.00434387]
[1747302486164,0.02469327,101550.0,101540.0,1.00434387]
[1747302486633,0.04038732,101550.0,101540.0,1.00434387]
[1747302486957,0.23833463,101550.0,101540.0,0.70033043]
[1747302487198,0.04138732,101550.0,101540.0,0.72002583]
[1747302487773,0.24818189,101550.0,101540.0,0.72002583]
[1747302488061,0.05123458,101550.0,101540.0,0.72002583]
[1747302489729,0.04138732,101550.0,101540.0,0.72002583]
[1747302490341,0.04138722,101550.0,101540.0,0.72002583]
[1747302490947,0.05123448,101550.0,101540.0,0.72002583]
[1747302491155,0.04138722,101550.0,101540.0,0.72002583]
[1747302491555,0.05123439,101550.0,101540.0,0.72002583]
[1747302492189,0.002,101550.0,101540.0,1.00434387]
[1747302492388,0.002,101550.0,101540.0,1.36888472]
[1747302493581,0.002,101550.0,101540.0,1.35888472]
[1747302493796,0.002,101550.0,101540.0,1.36888472]
[1747302494409,0.10020624,101550.0,101540.0,0.09219197]
[1747302494724,0.29715355,101550.0,101540.0,0.09219197]
[1747302494922,0.29715355,101550.0,101540.0,0.37651001]
[1747302496051,0.29715355,101550.0,101540.0,0.09219197]
[1747302496668,0.29715355,101550.0,101540.0,0.08214573]
[1747302497062,0.36715355,101550.0,101540.0,0.08214573]
[1747302497677,0.36715355,101550.0,101540.0,0.05184573]
[1747302497678,0.82026295,101550.0,101540.0,0.05184573]
[1747302498015,0.82026295,101550.0,101540.0,0.01850138]
[1747302498218,1.03610295,101550.0,101540.0,0.01850138]
[1747302498784,0.69610295,101550.0,101540.0,0.01850138]
[1747302502697,0.69610295,101550.0,101540.0,0.03360138]
[1747302502895,0.68030295,101550.0,101540.0,0.06660052]
[1747302503098,0.46446295,101550.0,101540.0,0.06660052]
[1747302503444,0.072,101550.0,101540.0,0.86896898]
[1747302503860,0.01184659,101550.0,101540.0,0.59252909]
[1747302504284,0.01184659,101550.0,101540.0,0.5728335]
[1747302504509,0.02169337,101550.0,101540.0,0.59252909]
[1747302504733,0.22848775,101550.0,101540.0,0.59252909]
[1747302504944,0.22848842,101550.0,101540.0,0.5728335]
[1747302505190,0.22848842,101550.0,101540.0,0.58268164]
[1747302505428,0.22848842,101550.0,101540.0,0.28851546]
[1747302505429,0.21864164,101550.0,101540.0,0.28851546]
[1747302505668,0.20879457,101550.0,101540.0,0.08170052]
[1747302505924,0.20879457,101550.0,101540.0,0.36601856]
[1747302506199,0.01184697,101550.0,101540.0,0.56298527]
[1747302506424,0.22848813,101550.0,101540.0,0.59252919]
[1747302507127,0.22848813,101550.0,101540.0,0.58268144]
[1747302508535,0.17848813,101550.0,101540.0,0.58268144]
[1747302509019,0.1883351,101550.0,101540.0,0.58268144]
[1747302509663,0.19818178,101550.0,101540.0,0.59252929]
[1747302510164,0.27544121,101560.0,101550.0,0.23809457]
[1747302510165,0.2852865,101560.0,101550.0,0.23809457]
[1747302510373,0.3148247,101560.0,101550.0,0.61131718]
[1747302510596,0.3148247,101560.0,101550.0,0.62116406]
[1747302510861,0.30497889,101560.0,101550.0,0.31715207]
[1747302511037,0.29513279,101560.0,101550.0,0.31715207]
[1747302511482,0.29813279,101560.0,101550.0,0.60247011]
[1747302511919,0.2882865,101560.0,101550.0,0.60247011]
[1747302512126,0.2912865,101560.0,101550.0,0.60347011]
[1747302512331,0.3612865,101560.0,101550.0,0.60347011]
[1747302512960,0.35144011,101560.0,101550.0,0.39667554]
[1747302515665,0.35144011,101560.0,101550.0,0.36537554]
[1747302515874,0.35144011,101560.0,101550.0,0.0810575]
[1747302516148,0.35144011,101560.0,101550.0,0.002]
[1747302517547,0.35144011,101560.0,101550.0,0.0172]
[1747302518195,0.27292792,101560.0,101550.0,0.0172]
[1747302518613,0.27292792,101560.0,101550.0,0.002]
[1747302518614,0.36654011,101560.0,101550.0,0.002]
[1747302518754,0.46384951,101560.0,101550.0,0.002]
[1747302518954,0.47924951,101560.0,101550.0,0.002]
[1747302519175,0.81924951,101560.0,101550.0,0.002]
[1747302519373,1.03312951,101560.0,101550.0,0.002]
[1747302520817,0.95461732,101560.0,101550.0,0.002]
[1747302522004,1.17089732,101560.0,101550.0,0.002]
[1747302526757,0.74073732,101560.0,101550.0,1.002]
[1747302526933,1.17277732,101560.0,101550.0,1.0993094]
[1747302527373,0.93921732,101560.0,101550.0,1.0993094]
[1747302527596,0.37023732,101560.0,101550.0,1.39882744]
[1747302527812,0.37023732,101560.0,101550.0,1.41502744]
[1747302527813,0.28277412,101560.0,101550.0,1.41502744]
[1747302528368,0.28277412,101560.0,101550.0,1.1307094]
[1747302528566,0.28277412,101560.0,101550.0,1.41502744]
[1747302530073,0.28277412,101560.0,101550.0,1.1307094]
[1747302532435,0.28277412,101560.0,101550.0,1.41502744]
[1747302532660,0.30246642,101560.0,101550.0,1.6316688]
[1747302532860,0.30246642,101560.0,101550.0,1.62182192]
[1747302533080,0.09569211,101560.0,101550.0,1.64151596]
[1747302533289,0.30246632,101560.0,101550.0,1.65136264]
[1747302533503,0.09569211,101560.0,101550.0,1.65136264]
[1747302534173,0.1055384,101560.0,101550.0,1.65136264]
[1747302534379,0.31231271,101560.0,101550.0,1.65136264]
[1747302534939,0.3024668,101560.0,101550.0,1.34735133]
[1747302535094,0.3024668,101560.0,101550.0,1.3571985]
[1747302535289,0.3024668,101560.0,101550.0,1.64151654]
[1747302535491,0.3024668,101560.0,101550.0,1.66121029]
[1747302535698,0.3024668,101560.0,101550.0,1.36704547]
[1747302535898,0.3024668,101560.0,101550.0,1.65136351]
[1747302538206,0.076,101560.0,101550.0,1.66121019]
[1747302538457,0.076,101560.0,101550.0,2.04283763]
[1747302539092,0.073,101560.0,101550.0,2.04183763]
[1747302539327,0.07,101560.0,101550.0,2.04083763]
[1747302539584,0.08084562,101560.0,101550.0,2.04283763]
[1747302540022,0.08184562,101560.0,101550.0,2.04483763]
[1747302540446,0.10153733,101560.0,101550.0,2.04483763]
[1747302540888,0.30831212,101560.0,101550.0,1.41702744]
[1747302541112,0.28862041,101560.0,101550.0,1.1165094]
[1747302541771,0.28862041,101560.0,101550.0,1.40082744]
[1747302542208,0.28862041,101560.0,101550.0,1.1165094]
[1747302542692,0.28862041,101560.0,101550.0,1.40082744]
[1747302542904,0.3825326,101560.0,101550.0,1.1013094]
[1747302543358,0.496242,101560.0,101550.0,1.1013094]
[1747302547430,0.41772981,101560.0,101550.0,1.1013094]
[1747302547858,0.41756321,101560.0,101550.0,1.1013094]
[1747302548073,0.40116321,101560.0,101550.0,1.1013094]
[1747302548280,0.28845381,101560.0,101550.0,1.59797475]
[1747302548490,0.28845381,101560.0,101550.0,1.62392201]
[1747302548689,0.28845381,101560.0,101550.0,1.41712744]
[1747302549260,0.28845381,101560.0,101550.0,1.1328094]
[1747302549469,0.28845381,101560.0,101550.0,1.41712744]
[1747302555185,0.28845381,101560.0,101550.0,1.40102744]
[1747302556780,0.28845381,101560.0,101550.0,1.60782211]
[1747302556987,0.28845381,101560.0,101550.0,1.40102744]
[1747302559009,0.19692792,101560.0,101550.0,0.61407475]
[1747302559199,0.20677402,101560.0,101550.0,0.61407475]
[1747302559437,0.20677402,101560.0,101550.0,0.41712744]
[1747302559647,0.20677402,101560.0,101550.0,0.62392211]
[1747302560691,0.20677402,101560.0,101550.0,0.63376937]
[1747302561407,0.20677402,101560.0,101550.0,0.64361644]
[1747302561837,0.00984552,101560.0,101550.0,0.93778059]
[1747302562049,0.19692622,101580.0,101570.0,0.21320853]
[1747302562292,0.19692622,101580.0,101570.0,0.34710005]
[1747302562446,0.27543841,101580.0,101570.0,0.06278201]
[1747302563521,0.29133841,101580.0,101570.0,0.04648201]
[1747302563658,0.40824781,101580.0,101570.0,0.04748201]
[1747302563864,0.40824781,101580.0,101570.0,0.001]
[1747302564494,0.41124781,101580.0,101570.0,0.002]
[1747302565331,0.33273562,101580.0,101570.0,0.002]
[1747302565741,0.31613562,101580.0,101570.0,0.002]
[1747302566383,0.33243562,101580.0,101570.0,0.002]
[1747302566595,0.31613562,101580.0,101570.0,0.002]
[1747302569499,0.21882622,101580.0,101570.0,0.0181]
[1747302569694,0.21882622,101580.0,101570.0,0.06901913]
[1747302571007,0.21882622,101580.0,101570.0,0.05291913]
[1747302571219,0.31613562,101580.0,101570.0,0.002]
[1747302572732,0.52953562,101580.0,101570.0,0.002]
[1747302572934,0.52945562,101580.0,101570.0,0.002]
[1747302574329,0.51355562,101580.0,101570.0,0.02006894]
[1747302574528,0.30023562,101580.0,101570.0,0.02006894]
[1747302574760,0.30023562,101580.0,101570.0,0.07118496]
[1747302574966,0.31593562,101580.0,101570.0,0.05311602]
[1747302575398,0.33153562,101580.0,101570.0,0.05311602]
[1747302575613,0.33153562,101580.0,101570.0,0.002]
[1747302575830,0.82981562,101580.0,101570.0,0.002]
[1747302576490,1.16981562,101580.0,101570.0,0.002]
[1747302588945,1.17029562,101580.0,101570.0,0.002]
[1747302592288,0.94105562,101580.0,101570.0,0.002]
[1747302592461,1.15393562,101580.0,101570.0,0.002]
[1747302592676,1.15385562,101580.0,101570.0,0.002]
[1747302593405,1.17015562,101580.0,101570.0,0.002]
[1747302594782,1.18469647,101580.0,101570.0,0.002]
[1747302600712,1.21467632,101580.0,101570.0,0.002]
[1747302601134,1.24194153,101580.0,101570.0,0.002]
[1747302601351,1.21467632,101580.0,101570.0,0.002]
[1747302601554,1.18469647,101580.0,101570.0,0.002]
[1747302601766,1.16839647,101580.0,101570.0,0.002]
[1747302601936,1.16363647,101580.0,101570.0,0.002]
[1747302602141,1.18003647,101580.0,101570.0,0.002]
[1747302602343,1.17999647,101580.0,101570.0,0.002]
[1747302602932,1.23909647,101580.0,101570.0,0.002]
[1747302603575,1.23961647,101580.0,101570.0,0.002]
[1747302604770,1.14933562,101580.0,101570.0,0.002]
[1747302605018,0.71023562,101580.0,101570.0,0.0172]
[1747302605226,0.58203562,101580.0,101570.0,0.0322]
[1747302605434,0.37023562,101580.0,101570.0,0.0638518]
[1747302605599,0.37023562,101580.0,101570.0,0.35013879]
[1747302605800,0.37023562,101580.0,101570.0,0.0638518]
[1747302606182,0.27292622,101580.0,101570.0,0.0638518]
[1747302606383,0.27292622,101580.0,101570.0,0.34816984]
[1747302607263,0.27292622,101580.0,101570.0,0.54507837]
[1747302607485,0.27292622,101580.0,101570.0,0.34816984]
[1747302607810,0.08584377,101580.0,101570.0,0.57461376]
[1747302608022,0.08584368,101580.0,101570.0,0.5844585]
[1747302608236,0.20671325,101590.0,101580.0,0.22642134]
[1747302608237,0.01968571,101590.0,101580.0,0.22642134]
[1747302608466,0.23624148,101590.0,101580.0,0.93440229]
[1747302608666,0.24608545,101590.0,101580.0,0.93440249]
[1747302609134,0.24267708,101600.0,101580.0,0.65992822]
[1747302609347,0.27220414,101600.0,101590.0,0.51445618]
[1747302609562,0.22637745,101600.0,101590.0,0.31561804]
[1747302609771,0.21653532,101600.0,101590.0,0.40798762]
[1747302609990,0.21653532,101600.0,101590.0,0.61470078]
[1747302610417,0.21653532,101600.0,101590.0,0.60485739]
[1747302610624,0.21653532,101600.0,101590.0,0.61470087]
[1747302610837,0.21953532,101600.0,101590.0,0.61570087]
[1747302610978,0.21953532,101600.0,101590.0,0.62554406]
[1747302611187,0.01284164,101600.0,101590.0,0.64522997]
[1747302611388,0.003,101600.0,101590.0,1.19698997]
[1747302611804,0.006,101600.0,101590.0,1.60415826]
[1747302612014,0.28199861,101620.0,101610.0,0.24891363]
[1747302612248,0.07534716,101620.0,101610.0,0.57977472]
[1747302612444,0.07534716,101620.0,101610.0,0.58961559]
[1747302612652,0.0556664,101620.0,101610.0,0.87393363]
[1747302612855,0.08518658,101620.0,101610.0,0.87393363]
[1747302613317,0.23617154,101620.0,101610.0,0.86409276]
[1747302613522,0.05120027,101620.0,101610.0,0.87393363]
[1747302613923,0.05320027,101620.0,101610.0,0.87493363]
[1747302614153,0.04335989,101620.0,101610.0,0.59061559]
[1747302616062,0.25001192,101620.0,101610.0,0.59061559]
[1747302616275,0.04335989,101620.0,101610.0,0.59061559]
[1747302616967,0.0335196,101620.0,101610.0,0.59061559]
[1747302617182,0.04335989,101620.0,101610.0,0.59061559]
[1747302617414,0.004,101620.0,101610.0,0.87493363]
[1747302617626,0.004,101620.0,101610.0,1.18392303]
[1747302617830,0.004,101620.0,101610.0,1.52392303]
[1747302618260,0.002,101620.0,101610.0,1.52292303]
[1747302618502,0.0393566,101630.0,101620.0,0.25803222]
[1747302618705,0.0393566,101630.0,101620.0,0.61936581]
[1747302619130,0.04919611,101630.0,101620.0,0.61936581]
[1747302619340,0.0393566,101630.0,101620.0,0.61936581]
[1747302619550,0.04919611,101630.0,101620.0,0.61936581]
[1747302619733,0.03983768,101630.0,101620.0,0.62136581]
[1747302619976,0.02999826,101630.0,101620.0,0.62136581]
[1747302620703,0.03983768,101630.0,101620.0,0.62136581]
[1747302620874,0.02015885,101630.0,101620.0,0.62136581]
[1747302621083,0.0398374,101630.0,101620.0,0.62236581]
[1747302621656,0.01031982,101630.0,101620.0,0.62236581]
[1747302621863,0.02015885,101630.0,101620.0,0.62236581]
[1747302622368,0.02999798,101630.0,101620.0,0.62236581]
[1747302622532,0.02015875,101630.0,101620.0,0.62236581]
[1747302622736,0.00048108,101630.0,101620.0,0.62236581]
[1747302623768,0.01031982,101630.0,101620.0,0.62236581]
[1747302624823,0.01031982,101630.0,101620.0,0.84702666]
[1747302625024,0.00048108,101630.0,101620.0,0.94433606]
[1747302625438,0.02999807,101630.0,101620.0,0.92979521]
[1747302625586,0.02015885,101630.0,101620.0,0.71967521]
[1747302625796,0.02015885,101630.0,101620.0,1.14131521]
[1747302625993,0.01031982,101630.0,101620.0,1.14131521]
[1747302626200,0.00048108,101630.0,101620.0,1.14131521]
[1747302627411,0.00048108,101630.0,101620.0,1.48131521]
[1747302627615,0.00048108,101630.0,101620.0,1.49585606]
[1747302628413,0.00048108,101630.0,101620.0,1.49385606]
[1747302629184,0.00148108,101630.0,101620.0,1.49785606]
[1747302629599,0.00148108,101630.0,101620.0,1.49685606]
[1747302629774,0.00048108,101630.0,101620.0,1.49285606]
[1747302629992,0.00148108,101630.0,101620.0,1.50085606]
[1747302630629,0.00148108,101630.0,101620.0,1.49785606]
[1747302631230,0.00248108,101630.0,101620.0,1.50185606]
[1747302631956,0.00248108,101630.0,101620.0,1.08021606]
[1747302632161,0.01231982,101630.0,101620.0,1.49873606]
[1747302632367,0.00248108,101630.0,101620.0,1.08021606]
[1747302632570,0.00248108,101630.0,101620.0,1.49865606]
[1747302633014,0.00248108,101630.0,101620.0,1.49849606]
[1747302638137,0.00248108,101630.0,101620.0,1.92779606]
[1747302638333,0.00248108,101630.0,101620.0,2.2416371]
[1747302638886,0.00248108,101630.0,101620.0,1.95731906]
[1747302640239,0.00248108,101630.0,101620.0,2.2416371]
[1747302642355,0.07851219,101660.0,101650.0,0.59726543]
[1747302642571,0.07851219,101660.0,101650.0,1.37961146]
[1747302642773,0.08834822,101660.0,101650.0,1.37961146]
[1747302643158,0.07851219,101660.0,101650.0,1.49146171]
[1747302643540,0.311278,101680.0,101670.0,0.2065505]
[1747302643823,0.311278,101680.0,101670.0,0.4810329]
[1747302643988,0.327578,101680.0,101670.0,0.55335871]
[1747302644189,0.33667186,101680.0,101670.0,0.55335871]
[1747302644603,0.33667186,101680.0,101670.0,0.26904067]
[1747302645358,0.34067186,101680.0,101670.0,0.27887641]
[1747302645565,0.34367186,101680.0,101670.0,0.27887641]
[1747302646486,0.03576233,101680.0,101670.0,0.57869445]
[1747302646630,0.26742719,101680.0,101670.0,0.57302999]
[1747302646846,0.26742719,101680.0,101670.0,0.07232581]
[1747302646847,0.26335872,101680.0,101670.0,0.07232581]
[1747302647396,0.25635872,101680.0,101670.0,0.07232581]
[1747302647743,0.26035872,101680.0,101670.0,0.07232581]
[1747302648349,0.26035872,101680.0,101670.0,0.27887641]
[1747302648770,0.26035872,101680.0,101670.0,0.07232581]
[1747302650825,0.26035872,101680.0,101670.0,0.26904067]
[1747302651235,0.26035872,101680.0,101670.0,0.27887641]
[1747302651478,0.25052414,101680.0,101670.0,0.27887641]
[1747302651859,0.23492414,101680.0,101670.0,0.27887641]
[1747302653701,0.23492414,101680.0,101670.0,0.07232581]
[1747302653974,0.23492414,101680.0,101670.0,0.26904067]
[1747302654146,0.25002414,101680.0,101670.0,0.07232581]
[1747302654379,0.23492414,101680.0,101670.0,0.27887641]
[1747302654679,0.23492414,101680.0,101670.0,0.35664385]
[1747302655000,0.23492414,101680.0,101670.0,0.07232581]
[1747302655525,0.24005969,101680.0,101670.0,0.27887641]
[1747302655727,0.23459417,101680.0,101670.0,0.58902999]
[1747302655932,0.02806331,101680.0,101670.0,0.6087004]
[1747302656174,0.01309386,101680.0,101670.0,1.24811844]
[1747302657034,0.24673994,101690.0,101680.0,0.22619895]
[1747302657236,0.24673961,101690.0,101680.0,0.61927763]
[1747302657829,0.05006344,101690.0,101680.0,0.61927763]
[1747302658052,0.24674029,101690.0,101680.0,0.61927763]
[1747302658370,0.0303969,101690.0,101680.0,0.61927763]
[1747302658568,0.00089655,101690.0,101680.0,0.97577763]
[1747302659197,0.01072968,101690.0,101680.0,0.97577763]
[1747302659406,0.20740585,101690.0,101680.0,0.95927763]